bitfinex-derivatives/quotes_SOLF0:USTF0_20250428
["timestamp","ask_amount","ask_price","bid_price","bid_amount"]
[1745823612327,24.92505936,150.85,150.8,6.6288]
[1745823612630,24.92505936,150.85,150.76,23.68]
[1745823612631,18.29775936,150.85,150.76,23.68]
[1745823612929,6.6281,150.83,150.76,23.68]
[1745823613430,6.6281,150.83,150.78,6.63]
[1745823613831,6.6281,150.83,150.76,23.68]
[1745823614034,9.2118,150.84,150.79,6.6294]
[1745823615027,2.5843,150.84,150.76,23.68]
[1745823615532,2.5843,150.84,150.81,6.6284]
[1745823616232,23.68,150.86,150.8,23.68]
[1745823618937,23.68,150.86,150.82,6.6278]
[1745823620237,23.68,150.86,150.8,23.68]
[1745823621642,30.3068,150.86,150.81,6.6283]
[1745823621944,23.68,150.86,150.8,23.68]
[1745823622144,23.68,150.89,150.8,23.68]
[1745823622441,50.07035936,150.91,150.81,20.86585936]
[1745823622644,50.07035936,150.91,150.84,6.6271]
[1745823622841,50.07035936,150.91,150.81,23.37045936]
[1745823623038,23.68,150.94,150.84,18.29775936]
[1745823623345,6.6239,150.92,150.87,6.6257]
[1745823623746,23.68,150.94,150.85,23.68]
[1745823624147,30.3033,150.94,150.89,6.6248]
[1745823624644,30.3033,150.94,150.85,53.22]
[1745823624847,30.3033,150.94,150.89,6.6249]
[1745823625047,6.6235,150.93,150.85,53.22]
[1745823625449,6.6235,150.93,150.89,6.6251]
[1745823625647,30.3031,150.94,150.89,6.6251]
[1745823628352,23.68,150.94,150.88,6.6255]
[1745823628547,23.68,150.94,150.85,53.22]
[1745823628845,6.624,150.92,150.85,53.22]
[1745823629051,18.29775936,150.92,150.85,53.22]
[1745823629253,23.68,150.94,150.85,53.22]
[1745823629448,6.6241,150.92,150.85,53.22]
[1745823630150,6.6241,150.92,150.88,6.6255]
[1745823630352,6.6247,150.9,150.85,53.22]
[1745823630747,6.6247,150.9,150.86,6.6262]
[1745823631354,23.68,150.94,150.85,36.1668]
[1745823631551,18.29775936,150.9,150.85,29.54]
[1745823631752,2.707,150.89,150.85,29.54]
[1745823631950,6.6263,150.87,150.85,29.54]
[1745823632252,6.6263,150.87,150.83,6.6274]
[1745823632549,5.2503,150.89,150.8,23.66]
[1745823633056,5.2503,150.89,150.87,6.626]
[1745823633249,5.2503,150.89,150.8,23.66]
[1745823634052,5.2503,150.89,150.86,6.6262]
[1745823634254,5.2503,150.89,150.8,23.66]
[1745823634657,11.8758,150.89,150.84,6.627]
[1745823635251,11.8758,150.89,150.8,23.66]
[1745823635454,11.8758,150.89,150.85,6.6268]
[1745823636350,5.2503,150.89,150.86,6.6264]
[1745823637254,2.707,150.89,150.87,6.6259]
[1745823637454,23.66,150.9,150.82,9.67]
[1745823637752,26.3409,150.93,150.82,12.4019]
[1745823638050,18.29775936,150.92,150.82,12.4019]
[1745823638450,6.6246,150.91,150.82,12.4019]
[1745823639051,6.6246,150.91,150.87,6.626]
[1745823639549,6.6246,150.91,150.85,23.66]
[1745823640355,24.92175936,150.92,150.85,23.66]
[1745823640557,6.624,150.92,150.87,6.6258]
[1745823640957,6.624,150.92,150.85,23.66]
[1745823641250,5.3268,150.94,150.85,23.66]
[1745823643051,5.3268,150.94,150.82,12.4019]
[1745823643248,18.29775936,150.91,150.83,23.66]
[1745823643457,41.95775936,150.91,150.83,23.66]
[1745823643658,6.6255,150.89,150.85,6.6266]
[1745823644252,6.6255,150.89,150.83,23.66]
[1745823644459,23.66,150.91,150.83,23.66]
[1745823644861,30.2844,150.91,150.87,6.6257]
[1745823645159,30.2844,150.91,150.83,23.66]
[1745823645361,30.2844,150.91,150.87,6.6259]
[1745823646462,30.2844,150.91,150.88,6.6255]
[1745823646861,23.66,150.91,150.88,6.6255]
[1745823647559,6.624,150.92,150.89,6.6251]
[1745823649065,6.6235,150.93,150.89,6.6251]
[1745823649464,28.9868,150.94,150.89,6.6251]
[1745823649663,6.6241,150.92,150.88,6.6255]
[1745823652066,6.6243,150.91,150.88,6.6255]
[1745823655970,6.624,150.92,150.88,6.6255]
[1745823656172,6.624,150.92,150.89,6.6252]
[1745823656371,28.9868,150.94,150.89,6.6252]
[1745823656571,6.6237,150.93,150.89,6.6252]
[1745823656773,6.6237,150.93,150.9,6.6247]
[1745823657668,41.95775936,150.97,150.87,23.66]
[1745823658067,41.95775936,150.97,150.88,5.3352]
[1745823658573,23.66,150.97,150.88,5.3352]
[1745823658869,23.66,151.0,150.9,18.29775936]
[1745823659069,23.66,151.0,150.91,23.66]
[1745823659373,6.6209,150.99,150.91,23.66]
[1745823659569,23.66,151.0,150.91,23.66]
[1745823659770,6.6215,150.98,150.94,6.6229]
[1745823660170,6.6215,150.98,150.91,23.66]
[1745823660373,6.6217,150.97,150.91,23.66]
[1745823660871,6.6222,150.96,150.92,6.6237]
[1745823664581,6.6222,150.96,150.91,23.66]
[1745823664582,6.6228,150.95,150.91,23.66]
[1745823665478,6.6222,150.96,150.91,30.284]
[1745823665979,6.6222,150.96,150.92,6.6238]
[1745823666578,6.6218,150.97,150.93,6.6234]
[1745823667279,24.91915936,150.98,150.94,6.6229]
[1745823667481,18.29775936,150.98,150.91,23.66]
[1745823667877,6.6217,150.97,150.93,6.6231]
[1745823668081,18.29775936,150.98,150.91,23.66]
[1745823668382,6.6218,150.97,150.93,6.6231]
[1745823668882,24.91925936,150.98,150.93,6.6234]
[1745823669089,18.29775936,150.98,150.93,6.6234]
[1745823669484,6.6221,150.96,150.92,6.6237]
[1745823669885,6.6221,150.96,150.92,16.2837]
[1745823670286,6.6221,150.96,150.93,6.6233]
[1745823671590,6.6221,150.96,150.92,16.2837]
[1745823672284,18.29775936,150.98,150.92,9.66]
[1745823672888,6.623,150.94,150.92,9.66]
[1745823673293,6.623,150.94,150.9,6.6247]
[1745823673494,6.6234,150.93,150.9,6.6247]
[1745823674294,18.29775936,150.95,150.89,38.5]
[1745823674493,20.95215936,150.95,150.89,38.5]
[1745823674791,20.95215936,150.95,150.89,14.84]
[1745823674995,6.6242,150.92,150.89,14.84]
[1745823676298,6.6242,150.92,150.89,21.4649]
[1745823676701,6.6247,150.9,150.89,14.84]
[1745823677097,6.6247,150.9,150.87,9.66]
[1745823677294,6.6253,150.89,150.87,9.66]
[1745823677498,41.95775936,150.92,150.87,9.66]
[1745823677798,18.29775936,150.89,150.87,9.66]
[1745823677994,6.6256,150.88,150.87,9.66]
[1745823678397,18.29775936,150.89,150.83,23.66]
[1745823678598,6.6266,150.86,150.83,30.2877]
[1745823678801,6.6266,150.86,150.8,23.66]
[1745823679093,6.6263,150.87,150.83,6.6275]
[1745823680101,30.2858,150.88,150.84,6.6273]
[1745823680303,23.66,150.88,150.8,23.66]
[1745823680600,23.66,150.88,150.81,17.07]
[1745823681502,30.2857,150.88,150.84,6.627]
[1745823682806,30.2857,150.88,150.85,6.6268]
[1745823682999,23.66,150.88,150.85,6.6268]
[1745823683300,23.66,150.88,150.83,6.6278]
[1745823683503,30.2857,150.88,150.83,6.6278]
[1745823683705,41.95775936,150.91,150.81,17.07]
[1745823683905,41.95775936,150.91,150.81,35.36775936]
[1745823684094,48.58215936,150.91,150.86,6.6262]
[1745823684900,48.58215936,150.91,150.87,6.626]
[1745823686410,23.66,150.91,150.84,23.66]
[1745823686607,26.361,150.94,150.84,41.95775936]
[1745823686802,26.361,150.94,150.85,5.521]
[1745823687107,6.6235,150.93,150.89,6.6249]
[1745823687409,23.66,150.94,150.85,5.521]
[1745823687607,30.2831,150.94,150.9,6.6244]
[1745823687907,23.66,150.94,150.85,8.0378]
[1745823688606,30.283,150.94,150.85,8.0378]
[1745823689704,30.283,150.94,150.9,6.6247]
[1745823690609,23.66,150.94,150.87,23.66]
[1745823691410,6.6241,150.92,150.88,6.6253]
[1745823691606,6.6241,150.92,150.87,23.66]
[1745823692308,6.6241,150.92,150.88,6.6253]
[1745823692711,6.6235,150.93,150.87,23.66]
[1745823692911,23.66,150.94,150.87,23.66]
[1745823694405,23.66,150.97,150.87,23.66]
[1745823694612,23.66,150.97,150.87,41.95775936]
[1745823694804,18.29775936,150.98,150.87,41.95775936]
[1745823695004,24.91915936,150.98,150.87,41.95775936]
[1745823695511,24.91915936,150.98,150.93,6.623]
[1745823695709,24.91915936,150.98,150.91,23.66]
[1745823696410,2.7509,150.99,150.91,23.66]
[1745823697207,18.29775936,150.98,150.91,23.66]
[1745823697708,18.29775936,150.98,150.95,6.6225]
[1745823698215,24.91905936,150.98,150.91,23.66]
[1745823698510,18.29775936,150.98,150.91,23.66]
[1745823700313,18.29775936,150.98,150.95,6.6222]
[1745823701811,18.29775936,150.98,150.96,6.6221]
[1745823702212,35.5556,151.03,150.99,6.6204]
[1745823702413,18.29775936,151.04,150.95,23.66]
[1745823702916,18.29775936,151.04,151.0,6.62]
[1745823703512,18.29775936,151.04,150.95,23.66]
[1745823703718,24.91645936,151.04,151.0,6.62]
[1745823703918,24.91645936,151.04,150.95,23.66]
[1745823704123,18.29775936,151.04,150.95,23.66]
[1745823704315,18.29775936,151.04,151.01,6.6197]
[1745823704724,18.29775936,151.04,150.95,23.66]
[1745823705322,18.29775936,151.04,151.02,6.6194]
[1745823706524,18.29775936,151.04,151.01,6.6198]
[1745823707023,18.29775936,151.04,150.99,23.66]
[1745823707218,18.29775936,151.04,151.0,6.62]
[1745823709125,18.29775936,151.04,151.01,6.6199]
[1745823709322,24.91635936,151.04,150.99,23.66]
[1745823710221,24.91635936,151.04,150.99,30.2806]
[1745823710420,24.91635936,151.04,150.99,23.66]
[1745823710724,24.91635936,151.04,150.96,23.64]
[1745823711023,24.91635936,151.04,150.99,6.6205]
[1745823712024,18.29775936,151.04,150.98,6.6211]
[1745823712423,18.29775936,151.01,150.96,23.64]
[1745823712623,6.6204,151.0,150.97,6.6215]
[1745823712823,6.6204,151.0,150.96,23.64]
[1745823713022,18.29775936,150.98,150.93,23.64]
[1745823714228,18.29775936,150.98,150.95,6.6225]
[1745823714623,1.15289051,151.1,150.93,384.64]
[1745823714829,18.29775936,151.05,151.0,6.62]
[1745823715127,41.93775936,151.05,151.0,6.62]
[1745823715328,41.93775936,151.05,150.99,6.6206]
[1745823716029,6.6186,151.04,150.99,6.6206]
[1745823716329,18.29775936,151.02,150.99,6.6206]
[1745823716525,18.29775936,151.02,150.98,6.621]
[1745823717023,18.29775936,151.02,150.99,6.6206]
[1745823718230,18.29775936,151.02,151.0,6.6203]
[1745823718929,18.29775936,151.02,151.01,6.6199]
[1745823719331,5.3187,151.04,150.94,44.61215936]
[1745823719631,18.29775936,150.96,150.82,7.72265707]
[1745823719831,28.9971,150.95,150.82,26.02041643]
[1745823720027,31.5673,150.95,150.82,26.02041643]
[1745823720629,31.5673,150.95,150.84,6.6272]
[1745823720826,31.5673,150.95,150.84,23.64]
[1745823721729,31.5673,150.95,150.85,18.29775936]
[1745823722730,31.5673,150.95,150.86,2.7063]
[1745823722931,31.5673,150.95,150.89,6.6251]
[1745823723131,31.5673,150.95,150.88,23.64]
[1745823723326,28.851,150.95,150.88,23.64]
[1745823723526,28.851,150.95,150.89,6.6251]
[1745823723726,35.4736,150.95,150.89,6.6251]
[1745823724633,28.851,150.95,150.9,6.6246]
[1745823724830,26.2102,150.95,150.88,23.64]
[1745823725226,32.8328,150.95,150.89,6.6249]
[1745823727034,6.623,150.94,150.89,6.6249]
[1745823727633,32.8329,150.95,150.9,6.6247]
[1745823727829,23.64,150.95,150.88,23.64]
[1745823728035,18.29775936,150.97,150.88,26.4021]
[1745823728237,6.6224,150.96,150.91,6.6243]
[1745823728534,6.6224,150.96,150.88,44.69985936]
[1745823728732,6.6224,150.96,150.91,6.624]
[1745823729129,26.4202,150.98,150.88,44.69985936]
[1745823729336,2.6705,150.99,150.91,18.29775936]
[1745823729537,23.64,151.01,150.92,23.64]
[1745823730233,6.6207,151.0,150.95,6.6221]
[1745823731131,6.6207,151.0,150.96,6.622]
[1745823731337,30.26,151.01,150.92,23.64]
[1745823732036,6.6205,151.0,150.92,23.64]
[1745823732236,23.64,151.01,150.92,23.64]
[1745823732536,23.64,151.01,150.92,39.24]
[1745823732736,30.26,151.01,150.96,6.6217]
[1745823734132,23.64,151.01,150.96,6.6217]
[1745823734336,6.6204,151.0,150.95,6.6225]
[1745823734636,23.64,151.01,150.92,39.24]
[1745823734836,6.6211,150.99,150.94,6.6229]
[1745823735136,23.64,151.01,150.92,39.24]
[1745823735436,23.64,151.01,150.93,6.6233]
[1745823735835,23.64,151.01,150.92,39.24]
[1745823736639,6.6215,150.98,150.92,39.24]
[1745823736839,41.93775936,151.01,150.92,39.24]
[1745823737335,18.29775936,150.98,150.92,15.6]
[1745823737639,18.29775936,150.95,150.92,15.6]
[1745823738137,6.623,150.94,150.92,15.6]
[1745823738339,18.29775936,150.95,150.88,23.64]
[1745823738534,18.29775936,150.92,150.85,23.64]
[1745823739441,23.64,150.91,150.88,6.6256]
[1745823742343,23.64,150.91,150.89,6.6251]
[1745823742543,23.64,150.91,150.85,23.64]
[1745823742841,30.2643,150.91,150.85,23.64]
[1745823743735,6.6248,150.9,150.85,23.64]
[1745823743934,5.3782,150.9,150.85,23.64]
[1745823744142,5.3782,150.9,150.87,6.626]
[1745823745347,5.3782,150.9,150.88,6.6255]
[1745823745550,23.92,150.94,150.85,23.64]
[1745823745743,23.92,150.94,150.85,47.38445936]
[1745823745942,23.92,150.94,150.93,6.6234]
[1745823746143,38.5088,150.97,150.93,6.6234]
[1745823747246,6.6221,150.96,150.93,6.6234]
[1745823747443,31.887,150.97,150.88,18.29775936]
[1745823747648,31.887,150.97,150.89,23.92]
[1745823748949,31.887,150.97,150.94,6.6228]
[1745823751350,38.5087,150.97,150.93,6.6233]
[1745823752252,31.887,150.97,150.94,6.6229]
[1745823753750,38.5087,150.97,150.94,6.6229]
[1745823753951,38.5087,150.97,150.93,6.6232]
[1745823755453,38.5087,150.97,150.94,6.6229]
[1745823755753,31.887,150.97,150.89,23.92]
[1745823756254,6.6222,150.96,150.92,6.6235]
[1745823757255,6.6222,150.96,150.93,6.6232]
[1745823757454,31.887,150.97,150.89,23.92]
[1745823757756,31.887,150.97,150.93,6.6231]
[1745823758054,38.5088,150.97,150.93,6.6231]
[1745823758358,38.5088,150.97,150.94,6.6229]
[1745823758956,6.6221,150.96,150.89,23.92]
[1745823760258,49.91888777,150.97,150.89,23.92]
[1745823760954,43.29688777,150.97,150.93,6.6233]
[1745823761159,35.32988777,150.97,150.93,6.6233]
[1745823761756,23.92,150.97,150.94,6.623]
[1745823763664,23.92,150.97,150.95,6.6225]
[1745823766859,23.92,151.0,150.98,6.6212]
[1745823767059,35.32988777,151.0,150.93,23.92]
[1745823767263,35.32988777,151.0,150.97,6.6214]
[1745823767666,35.32988777,151.0,150.93,23.92]
[1745823768662,23.92,151.0,150.93,23.92]
[1745823769168,23.92,151.0,150.98,6.6212]
[1745823769359,18.02948777,151.02,150.98,6.6212]
[1745823769565,23.92,151.07,150.93,5.4489]
[1745823769762,35.32988777,151.07,150.98,11.40988777]
[1745823769964,35.32988777,151.07,150.99,23.92]
[1745823770668,41.94718777,151.07,151.02,6.6192]
[1745823771169,35.32988777,151.07,151.03,6.6189]
[1745823771569,35.32988777,151.07,150.99,23.92]
[1745823771766,23.92,151.07,151.02,6.6193]
[1745823771964,2.6067,151.08,151.0,11.40988777]
[1745823772269,2.6067,151.08,151.03,6.6187]
[1745823772870,9.2237,151.08,151.03,6.6187]
[1745823773164,11.40988777,151.07,151.03,6.6187]
[1745823773368,18.02748777,151.07,151.02,6.6194]
[1745823773771,11.40988777,151.05,151.01,6.6196]
[1745823774170,11.40988777,151.03,150.96,24.94]
[1745823774370,11.40988777,151.01,150.98,6.6212]
[1745823774573,11.40988777,151.01,150.96,24.94]
[1745823774772,11.40988777,151.01,150.97,6.6216]
[1745823775169,18.02988777,151.01,150.93,27.6212]
[1745823775473,36.34988777,151.01,150.93,27.6212]
[1745823775972,11.40988777,150.99,150.95,6.6222]
[1745823776670,11.40988777,150.99,150.96,6.622]
[1745823776973,36.34988777,151.01,150.93,27.6212]
[1745823777666,24.94,151.01,150.93,27.6212]
[1745823778576,24.94,151.01,150.97,6.6214]
[1745823780378,24.94,151.01,150.98,6.6212]
[1745823780775,24.94,151.01,150.93,27.6212]
[1745823780976,43.18309015,151.01,150.93,24.94]
[1745823782579,6.6211,150.99,150.95,6.6221]
[1745823782779,43.18309015,151.01,150.93,24.94]
[1745823783379,6.6215,150.98,150.94,6.6227]
[1745823783880,6.6215,150.98,150.93,24.94]
[1745823784180,6.6209,150.99,150.95,6.6225]
[1745823784383,6.6209,150.99,150.93,24.94]
[1745823784776,43.18309015,151.01,150.93,24.94]
[1745823784777,6.6205,151.0,150.94,12.43]
[1745823785075,43.18309015,151.01,150.94,12.43]
[1745823785480,6.6208,150.99,150.95,6.6224]
[1745823786180,6.6208,150.99,150.96,6.622]
[1745823786477,43.18309015,151.01,150.94,12.43]
[1745823787082,6.622,150.97,150.94,12.43]
[1745823787383,43.18309015,151.01,150.94,12.43]
[1745823787685,6.6219,150.97,150.94,12.43]
[1745823787879,43.18309015,151.01,150.95,6.6225]
[1745823789485,6.6211,150.99,150.95,6.6225]
[1745823789686,43.18309015,151.01,150.96,6.6221]
[1745823789985,43.18309015,151.01,150.94,12.43]
[1745823790283,43.18309015,151.01,150.96,6.6218]
[1745823790284,6.6205,151.0,150.96,6.6218]
[1745823792391,6.6205,151.0,150.97,6.6216]
[1745823795489,49.80309015,151.01,150.98,6.621]
[1745823797389,24.94,151.01,150.94,12.43]
[1745823797584,24.94,151.01,150.94,26.5830033]
[1745823797780,13.9144033,151.03,151.0,6.62]
[1745823798084,13.9144033,151.03,150.95,2.5952]
[1745823798286,11.4007033,151.03,151.01,6.6196]
[1745823799089,11.4007033,151.03,151.0,6.6202]
[1745823799589,18.0198033,151.03,151.0,6.6202]
[1745823800688,11.4007033,151.01,150.98,6.621]
[1745823800889,11.4007033,151.01,150.94,15.1823]
[1745823801089,6.6204,151.0,150.96,6.6218]
[1745823801983,18.0216033,150.99,150.96,6.6218]
[1745823802790,11.4007033,151.03,150.94,23.8307033]
[1745823803389,11.4007033,151.03,151.01,6.6198]
[1745823804391,24.94,151.04,151.02,6.6195]
[1745823805092,24.94,151.04,150.97,24.7]
[1745823805586,24.94,151.04,150.97,27.3677]
[1745823805788,24.94,151.04,151.03,6.619]
[1745823806094,6.6178,151.06,151.03,6.619]
[1745823807191,6.6183,151.05,150.97,27.3677]
[1745823807392,45.56452115,151.07,150.97,27.3677]
[1745823807595,6.618,151.06,151.02,6.6191]
[1745823807894,6.618,151.06,150.97,27.3677]
[1745823808096,6.618,151.06,151.02,6.6191]
[1745823808299,6.6182,151.05,151.02,6.6191]
[1745823808697,45.56452115,151.07,151.02,6.6191]
[1745823809196,6.6179,151.06,151.02,6.6191]
[1745823809997,6.6183,151.05,151.02,6.6191]
[1745823811399,45.56452115,151.07,150.97,27.3677]
[1745823812000,6.6183,151.05,150.97,27.3677]
[1745823812299,45.56452115,151.07,150.97,27.3677]
[1745823812598,6.6179,151.06,151.02,6.6192]
[1745823813196,52.18192115,151.07,151.03,6.6187]
[1745823813799,6.6178,151.06,151.03,6.6187]
[1745823815702,6.6182,151.05,150.97,27.3677]
[1745823819105,6.6179,151.06,150.97,27.3677]
[1745823819306,6.6179,151.06,151.02,6.6193]
[1745823819706,6.6183,151.05,151.02,6.6193]
[1745823821510,6.6187,151.04,150.97,27.3677]
[1745823821807,24.7,151.03,150.95,24.7]
[1745823822007,6.6204,151.0,150.95,24.7]
[1745823822808,6.6204,151.0,150.94,12.43]
[1745823823408,6.6204,151.0,150.96,6.6218]
[1745823825510,18.02641155,151.0,150.96,6.6218]
[1745823826615,6.6204,151.0,150.96,6.6218]
[1745823826909,18.02641155,151.0,150.96,6.6218]
[1745823828210,6.6208,150.99,150.96,6.6218]
[1745823828712,18.02651155,151.0,150.96,6.6218]
[1745823830211,18.02651155,151.0,150.97,14.94]
[1745823830812,6.6209,150.99,150.97,14.94]
[1745823831012,11.40601155,150.98,150.97,14.94]
[1745823836223,18.02721155,150.98,150.97,14.94]
[1745823836418,11.40601155,150.98,150.9,24.3]
[1745823836622,11.40601155,150.95,150.87,38.36151155]
[1745823836824,18.02861155,150.95,150.91,6.624]
[1745823837226,11.40601155,150.95,150.91,6.624]
[1745823837427,18.02881155,150.95,150.92,6.6237]
[1745823837726,11.40601155,150.95,150.92,6.6237]
[1745823839526,11.40601155,150.95,150.93,6.6233]
[1745823840229,18.02861155,150.95,150.87,38.36151155]
[1745823840627,18.02861155,150.95,150.88,14.18]
[1745823840823,18.02861155,150.95,150.91,6.6239]
[1745823841030,11.40601155,150.93,150.88,14.18]
[1745823841323,11.40601155,150.93,150.9,6.6247]
[1745823841532,6.6248,150.9,150.88,14.18]
[1745823842026,18.03151155,150.89,150.82,24.32]
[1745823842424,18.03151155,150.89,150.85,6.6268]
[1745823842629,11.40601155,150.87,150.79,7.72265707]
[1745823842833,24.32,150.86,150.79,7.72265707]
[1745823843026,24.32,150.86,150.78,5.5164]
[1745823843529,24.32,150.86,150.81,6.6284]
[1745823843736,24.32,150.86,150.78,5.5164]
[1745823843926,24.32,150.86,150.78,29.8364]
[1745823844126,30.9467,150.86,150.78,29.8364]
[1745823844427,11.40601155,150.83,150.75,8.87636934]
[1745823844632,24.32,150.82,150.78,6.63]
[1745823844828,11.40601155,150.81,150.75,7.72265707]
[1745823845431,18.03501155,150.81,150.76,6.6308]
[1745823845627,11.40601155,150.81,150.75,7.72265707]
[1745823845826,24.32,150.82,150.75,7.72265707]
[1745823846025,24.32,150.82,150.77,6.6304]
[1745823846230,24.32,150.82,150.74,35.72601155]
[1745823847232,24.32,150.82,150.78,6.6297]
[1745823848636,24.32,150.82,150.79,6.6295]
[1745823849336,24.32,150.82,150.78,6.6299]
[1745823849528,11.40601155,150.81,150.74,35.72601155]
[1745823849728,24.32,150.82,150.76,11.40601155]
[1745823850135,24.32,150.82,150.77,2.7132]
[1745823850332,24.32,150.82,150.81,6.6287]
[1745823850532,38.47981155,150.85,150.77,2.7132]
[1745823850934,11.40601155,150.83,150.74,35.72601155]
[1745823851129,11.40601155,150.83,150.75,2.7132]
[1745823851434,11.40601155,150.83,150.79,6.6292]
[1745823851736,11.40601155,150.81,150.74,24.32]
[1745823851936,18.03591155,150.79,150.74,6.6315]
[1745823852135,11.40601155,150.77,150.71,26.8534]
[1745823852938,11.40601155,150.79,150.71,26.8534]
[1745823853334,11.40601155,150.77,150.71,26.8534]
[1745823853534,18.30933593,150.76,150.68,24.34]
[1745823854034,18.30933593,150.76,150.72,6.6326]
[1745823854229,24.34,150.77,150.68,24.34]
[1745823855538,24.34,150.77,150.76,6.6309]
[1745823856641,24.34,150.77,150.68,24.34]
[1745823856936,18.30933593,150.76,150.68,24.34]
[1745823857136,18.30933593,150.76,150.72,6.6323]
[1745823858439,6.6314,150.75,150.66,2.7132]
[1745823858638,18.30933593,150.76,150.66,2.7132]
[1745823859037,24.94053593,150.76,150.71,6.6327]
[1745823859736,18.30933593,150.73,150.66,2.7132]
[1745823859941,18.30933593,150.73,150.65,2.684]
[1745823860441,18.30933593,150.7,150.6,1.15495669]
[1745823860631,18.30933593,150.7,150.61,24.34]
[1745823860836,18.30933593,150.7,150.65,6.6354]
[1745823861442,18.30933593,150.7,150.61,24.34]
[1745823862143,18.30933593,150.7,150.64,6.6358]
[1745823862840,6.6343,150.69,150.64,6.6358]
[1745823863438,6.6347,150.68,150.63,6.6365]
[1745823863638,6.6347,150.68,150.61,24.34]
[1745823864133,6.6341,150.69,150.64,6.6359]
[1745823864338,18.30933593,150.7,150.59,32.365]
[1745823864641,18.30933593,150.67,150.59,32.365]
[1745823864937,24.94433593,150.67,150.62,6.6367]
[1745823865137,24.94433593,150.67,150.59,32.365]
[1745823865337,18.30933593,150.67,150.59,32.365]
[1745823865739,6.6345,150.68,150.59,32.365]
[1745823866146,6.6349,150.67,150.62,6.6367]
[1745823866646,31.0549,150.67,150.59,24.34]
[1745823866840,31.0549,150.67,150.61,6.6374]
[1745823866841,6.6354,150.66,150.61,6.6374]
[1745823867147,18.30933593,150.65,150.61,6.6374]
[1745823867340,18.30933593,150.65,150.59,24.34]
[1745823868348,18.30933593,150.65,150.62,6.637]
[1745823871548,2.6658,150.66,150.63,6.6366]
[1745823871746,2.6658,150.66,150.59,24.34]
[1745823872647,24.42,150.67,150.64,6.6358]
[1745823872852,24.42,150.67,150.59,24.34]
[1745823873046,24.42,150.7,150.6,8.0363]
[1745823874047,27.58493593,150.71,150.6,8.0363]
[1745823874048,24.42,150.73,150.64,18.30933593]
[1745823874247,24.42,150.73,150.7,6.6335]
[1745823874447,24.42,150.73,150.65,24.42]
[1745823874852,24.42,150.73,150.69,6.6339]
[1745823875953,31.0523,150.73,150.69,6.6339]
[1745823877949,6.6327,150.72,150.68,6.6343]
[1745823878447,24.42,150.73,150.65,24.42]
[1745823878855,18.30933593,150.72,150.65,24.42]
[1745823880256,6.6332,150.71,150.67,6.6347]
[1745823880451,18.30933593,150.72,150.67,6.6347]
[1745823880755,18.30933593,150.72,150.65,24.42]
[1745823880957,24.94203593,150.72,150.67,6.6348]
[1745823881256,18.30933593,150.72,150.65,24.42]
[1745823881456,24.42,150.73,150.65,24.42]
[1745823882057,24.42,150.73,150.69,6.6338]
[1745823882357,31.0523,150.73,150.69,6.6338]
[1745823883151,24.42,150.73,150.65,24.42]
[1745823883353,18.30933593,150.72,150.65,24.42]
[1745823883956,6.6331,150.71,150.67,6.6348]
[1745823884357,18.30933593,150.72,150.61,18.30933593]
[1745823884557,24.94363593,150.69,150.64,6.6358]
[1745823884757,18.30933593,150.69,150.64,6.6358]